[Event "5th EKA IIFL Investment 2019"]
[Site "Mumbai"]
[Date "2019.12.30"]
[Round "1.25"]
[White "Koustav Chatterjee"]
[Black "Patil, Pratik"]
[Result "1/2-1/2"]
[ECO "A15"]
[WhiteElo "2447"]
[BlackElo "2167"]
[Annotator "ChessBase"]
[PlyCount "81"]
[EventDate "2019.12.30"]
[EventType "swiss"]
[EventCountry "IND"]
[SourceTitle "playchess.com"]
[Source "ChessBase"]
[SourceQuality "1"]
[TimeControl "40/5400+30:1800+30"]

1. c4 {[%emt 0:00:00]} Nf6 {[%emt 0:00:04]} 2. g3 {[%emt 0:00:00]} c6 {[%emt 0:00:37]} 3. Nf3 {[%emt 0:00:01]} g6 {[%emt 0:00:29]} 4. b3 {[%emt 0:01:45]} Bg7 {[%emt 0:00:08]} 5. Bb2 {[%emt 0:00:11]} O-O {[%emt 0:00:11]} 6. Bg2 {[%emt 0:00:03]} d5 {[%emt 0:00:14]} 7. O-O {[%emt 0:00:08]} Bf5 {[%emt 0:08:24]} 8. d3 {[%emt 0:00:14]} Qc8 {[%emt 0:04:33]} 9. Re1 {[%emt 0:02:59]} Bh3 {[%emt 0:00:41]} 10. Bh1 {[%emt 0:06:43]} h6 {[%emt 0:06:11]} 11. Nbd2 {[%emt 0:07:18]} Nbd7 {[%emt 0:00:32]} 12. Rc1 {[%emt 0:02:04]} Qd8 {[%emt 0:02:25]} 13. cxd5 {[%emt 0:06:27]} cxd5 {[%emt 0:00:21]} 14. e4 {[%emt 0:00:10]} dxe4 {[%emt 0:08:29]} 15. dxe4 {[%emt 0:00:18]} Rc8 {[%emt 0:00:16]} 16. Qe2 {[%emt 0:10:04]} Nc5 {[%emt 0:07:35]} 17. Bd4 {[%emt 0:02:13]} Ne6 {[%emt 0:02:03]} 18. Bxf6 {[%emt 0:11:23]} Rxc1 {[%emt 0:12:51]} 19. Rxc1 {[%emt 0:00:12]} Bxf6 {[%emt 0:00:07]} 20. Qe3 {[%emt 0:04:11]} Bg7 {[%emt 0:04:56]} 21. Bg2 {[%emt 0:07:00]} Bxg2 {[%emt 0:04:30]} 22. Kxg2 {[%emt 0:02:07]} Qa5 {[%emt 0:00:31]} 23. Rc2 {[%emt 0:06:55]} Rd8 {[%emt 0:01:09]} 24. Nc4 {[%emt 0:01:51]} Qa6 {[%emt 0:09:45]} 25. h4 {[%emt 0:03:56]} h5 {[%emt 0:04:26]} 26. Rd2 {[%emt 0:01:49]} Rxd2 {[%emt 0:00:55]} 27. Qxd2 {[%emt 0:00:04]} Qc6 {[%emt 0:00:24]} 28. Qd5 {[%emt 0:01:40]} Qxd5 {[%emt 0:05:23]} 29. exd5 {[%emt 0:00:43]} Nc7 {[%emt 0:01:25]} 30. d6 {[%emt 0:00:11]} exd6 {[%emt 0:00:07]} 31. Nxd6 {[%emt 0:00:06]} b5 {[%emt 0:02:11]} 32. Ng5 {[%emt 0:00:34]} f6 {[%emt 0:05:07]} 33. Nh3 {[%emt 0:00:30]} Bf8 {[%emt 0:00:53]} 34. Ne4 {[%emt 0:00:26]} Nd5 {[%emt 0:00:41]} 35. a4 {[%emt 0:11:24]} bxa4 {[%emt 0:00:19]} 36. bxa4 {[%emt 0:00:04]} Kf7 {[%emt 0:00:17]} 37. Kf3 {[%emt 0:00:07]} Kg8 {[%emt 0:00:50]} 38. Kg2 {[%emt 0:00:04]} Kf7 {[%emt 0:00:02]} 39. Kf3 {[%emt 0:00:04]} Kg8 {[%emt 0:00:04]} 40. Kg2 {[%emt 0:00:00]} Kf7 {[%emt 0:00:00]} 41. Kf3 {[%emt 0:00:06]} 1/2-1/2

[Event "5th EKA IIFL Investment 2019"]
[Site "Mumbai"]
[Date "2019.12.30"]
[Round "1.26"]
[White "Kulkarni, Vinayak"]
[Black "Rahman, Ziaur"]
[Result "1/2-1/2"]
[ECO "A40"]
[WhiteElo "2167"]
[BlackElo "2440"]
[Annotator "ChessBase"]
[PlyCount "86"]
[EventDate "2019.12.30"]
[EventType "swiss"]
[EventCountry "IND"]
[SourceTitle "playchess.com"]
[Source "ChessBase"]
[SourceQuality "1"]
[TimeControl "40/5400+30:1800+30"]

1. d4 {[%emt 0:01:31]} b6 {[%emt 0:02:18]} 2. e4 {[%emt 0:00:22]} Bb7 {[%emt 0:00:06]} 3. Bd3 {[%emt 0:00:09]} g6 {[%emt 0:01:54]} 4. Nf3 {[%emt 0:03:31]} Bg7 {[%emt 0:00:09]} 5. O-O {[%emt 0:00:56]} d6 {[%emt 0:01:05]} 6. a4 {[%emt 0:06:31]} a6 {[%emt 0:05:02]} 7. a5 {[%emt 0:09:28]} b5 {[%emt 0:01:54]} 8. c4 {[%emt 0:03:15]} c6 {[%emt 0:03:06]} 9. Bd2 {[%emt 0:07:10]} Nd7 {[%emt 0:01:12]} 10. Re1 {[%emt 0:09:25]} e5 {[%emt 0:03:58]} 11. cxb5 {[%emt 0:10:40]} axb5 {[%emt 0:02:36]} 12. d5 {[%emt 0:05:09]} Nc5 {[%emt 0:03:38]} 13. Bf1 {[%emt 0:06:22]} Nf6 {[%emt 0:03:29]} 14. Bg5 {[%emt 0:05:26]} Qd7 {[%emt 0:11:37]} 15. Bxf6 {[%emt 0:04:20]} Bxf6 {[%emt 0:00:06]} 16. Nc3 {[%emt 0:00:54]} O-O {[%emt 0:03:11]} 17. b4 {[%emt 0:04:03]} Na6 {[%emt 0:00:29]} 18. Qb3 {[%emt 0:04:33]} Nc7 {[%emt 0:00:59]} 19. dxc6 {[%emt 0:00:51]} Bxc6 {[%emt 0:00:10]} 20. Red1 {[%emt 0:01:03]} Bg7 {[%emt 0:02:16]} 21. Rd2 {[%emt 0:01:06]} Rfe8 {[%emt 0:01:23]} 22. Rad1 {[%emt 0:00:47]} Bf8 {[%emt 0:00:32]} 23. Ne1 {[%emt 0:01:53]} Ne6 {[%emt 0:06:15]} 24. Nc2 {[%emt 0:03:30]} Qb7 {[%emt 0:01:36]} 25. Nd5 {[%emt 0:02:32]} Red8 {[%emt 0:01:57]} 26. Nce3 {[%emt 0:01:45]} Nd4 {[%emt 0:01:20]} 27. Qc3 {[%emt 0:03:34]} Rac8 {[%emt 0:01:12]} 28. Qa3 {[%emt 0:00:49]} Bh6 {[%emt 0:01:24]} 29. Ng4 {[%emt 0:02:15]} Bxd2 {[%emt 0:00:58]} 30. Ngf6+ {[%emt 0:00:07]} Kg7 {[%emt 0:00:16]} 31. Rxd2 {[%emt 0:00:09]} Bxd5 {[%emt 0:01:20]} 32. Nxd5 {[%emt 0:00:05]} Re8 {[%emt 0:05:31]} 33. Qe3 {[%emt 0:00:41]} Qa7 {[%emt 0:01:14]} 34. Nb6 {[%emt 0:00:36]} Rcd8 {[%emt 0:01:00]} 35. Rxd4 {[%emt 0:00:48]} exd4 {[%emt 0:00:06]} 36. Qxd4+ {[%emt 0:00:04]} f6 {[%emt 0:00:06]} 37. Bxb5 {[%emt 0:00:16]} Re5 {[%emt 0:00:01]} 38. Bc4 {[%emt 0:01:37]} d5 {[%emt 0:01:26]} 39. f3 {[%emt 0:00:29]} Rh5 {[%emt 0:04:00]} 40. exd5 {[%emt 0:00:00]} Qe7 {[%emt 0:00:00]} 41. Bf1 {[%emt 0:03:55]} Qa7 {[%emt 0:13:35]} 42. Bc4 {[%emt 0:07:09]} Qe7 {[%emt 0:03:04]} 43. Bf1 {[%emt 0:00:11]} Qa7 {[%emt 0:00:07]} 1/2-1/2

[Event "5th EKA IIFL Investment 2019"]
[Site "Mumbai"]
[Date "2019.12.30"]
[Round "1.27"]
[White "Das, Sayantan"]
[Black "Thanki, Hemal Karsanji"]
[Result "1-0"]
[ECO "B31"]
[WhiteElo "2440"]
[BlackElo "2164"]
[Annotator "ChessBase"]
[PlyCount "97"]
[EventDate "2019.12.30"]
[EventType "swiss"]
[EventCountry "IND"]
[SourceTitle "playchess.com"]
[Source "ChessBase"]
[SourceQuality "1"]
[TimeControl "40/5400+30:1800+30"]

1. e4 {[%emt 0:04:54]} c5 {[%emt 0:00:00]} 2. Nf3 {[%emt 0:00:18]} Nc6 {[%emt 0:00:00]} 3. Bb5 {[%emt 0:00:23]} g6 {[%emt 0:00:00]} 4. O-O {[%emt 0:00:13]} Bg7 {[%emt 0:00:00]} 5. c3 {[%emt 0:00:14]} Nf6 {[%emt 0:00:29]} 6. Re1 {[%emt 0:00:26]} O-O {[%emt 0:00:55]} 7. d4 {[%emt 0:01:16]} d5 {[%emt 0:02:43]} 8. e5 {[%emt 0:00:41]} Ne4 {[%emt 0:00:17]} 9. Nbd2 {[%emt 0:02:36]} cxd4 {[%emt 0:07:51]} 10. cxd4 {[%emt 0:01:17]} Nxd2 {[%emt 0:06:41]} 11. Bxd2 {[%emt 0:01:58]} Qb6 {[%emt 0:02:44]} 12. Bxc6 {[%emt 0:01:33]} Qxc6 {[%emt 0:00:32]} 13. h3 {[%emt 0:05:13]} Bf5 {[%emt 0:05:27]} 14. Bb4 {[%emt 0:05:39]} Rfe8 {[%emt 0:02:17]} 15. Rc1 {[%emt 0:00:56]} Qb5 {[%emt 0:07:06]} 16. Qd2 {[%emt 0:02:23]} Rac8 {[%emt 0:06:45]} 17. Nh4 {[%emt 0:10:34]} Qd7 {[%emt 0:24:09]} 18. a4 {[%emt 0:07:10]} h5 {[%emt 0:11:23]} 19. Qg5 {[%emt 0:07:23]} e6 {[%emt 0:01:26]} 20. Rxc8 {[%emt 0:09:28]} Qxc8 {[%emt 0:02:28]} 21. a5 {[%emt 0:06:19]} Be4 {[%emt 0:02:09]} 22. f3 {[%emt 0:05:48]} Bd3 {[%emt 0:01:01]} 23. Qe3 {[%emt 0:03:41]} Ba6 {[%emt 0:01:40]} 24. Rc1 {[%emt 0:01:59]} Qd7 {[%emt 0:01:25]} 25. g4 {[%emt 0:01:29]} hxg4 {[%emt 0:00:12]} 26. fxg4 {[%emt 0:00:38]} Rc8 {[%emt 0:00:16]} 27. Rxc8+ {[%emt 0:07:14]} Qxc8 {[%emt 0:00:01]} 28. Qc3 {[%emt 0:00:12]} Qd7 {[%emt 0:03:29]} 29. Nf3 {[%emt 0:03:00]} b6 {[%emt 0:03:09]} 30. axb6 {[%emt 0:01:17]} axb6 {[%emt 0:00:05]} 31. Kf2 {[%emt 0:01:14]} Qb5 {[%emt 0:00:21]} 32. Kg3 {[%emt 0:00:15]} Bh6 {[%emt 0:04:56]} 33. Be7 {[%emt 0:02:40]} Qf1 {[%emt 0:01:20]} 34. Qc6 {[%emt 0:01:39]} Bb5 {[%emt 0:02:02]} 35. Qc8+ {[%emt 0:00:53]} Kh7 {[%emt 0:00:03]} 36. Bf6 {[%emt 0:00:12]} Bg7 {[%emt 0:01:18]} 37. Ng5+ {[%emt 0:00:46]} Kh6 {[%emt 0:00:01]} 38. Nxf7+ {[%emt 0:00:19]} Kh7 {[%emt 0:00:02]} 39. Ng5+ {[%emt 0:01:34]} Kh6 {[%emt 0:00:05]} 40. Bxg7+ {[%emt 0:00:00]} Kxg7 {[%emt 0:00:00]} 41. Nxe6+ {[%emt 0:02:34]} Kf7 {[%emt 0:02:46]} 42. Ng5+ {[%emt 0:00:22]} Kg7 {[%emt 0:10:36]} 43. Qc7+ {[%emt 0:01:21]} Kg8 {[%emt 0:00:08]} 44. Qh7+ {[%emt 0:01:53]} Kf8 {[%emt 0:00:06]} 45. Qh8+ {[%emt 0:00:05]} Ke7 {[%emt 0:00:41]} 46. Qg7+ {[%emt 0:00:08]} Ke8 {[%emt 0:03:03]} 47. Qxg6+ {[%emt 0:00:22]} Ke7 {[%emt 0:00:02]} 48. Qe6+ {[%emt 0:00:20]} Kd8 {[%emt 0:00:21]} 49. Qf6+ {[%emt 0:00:15]} 1-0

[Event "5th EKA IIFL Investment 2019"]
[Site "Mumbai"]
[Date "2019.12.30"]
[Round "1.28"]
[White "Chitlange Sakshi"]
[Black "Sardana, Rishi"]
[Result "0-1"]
[ECO "A40"]
[WhiteElo "2163"]
[BlackElo "2428"]
[Annotator "ChessBase"]
[PlyCount "82"]
[EventDate "2019.12.30"]
[EventType "swiss"]
[EventCountry "IND"]
[SourceTitle "playchess.com"]
[Source "ChessBase"]
[SourceQuality "1"]
[TimeControl "40/5400+30:1800+30"]

1. d4 {[%emt 0:00:00]} Nf6 2. c4 {[%emt 0:00:00]} e6 {[%emt 0:00:00]} 3. g3 {[%emt 0:00:00]} d5 {[%emt 0:00:00]} 4. Nf3 {[%emt 0:00:00]} Bb4+ {[%emt 0:00:00]} 5. Bd2 {[%emt 0:00:21]} Bd6 {[%emt 0:00:01]} 6. Nc3 {[%emt 0:01:16]} O-O {[%emt 0:00:09]} 7. Bg5 {[%emt 0:02:08]} Be7 {[%emt 0:00:14]} 8. Bg2 {[%emt 0:01:18]} dxc4 {[%emt 0:01:07]} 9. Qa4 {[%emt 0:04:05]} a6 {[%emt 0:01:03]} 10. Qxc4 {[%emt 0:00:36]} b5 {[%emt 0:00:06]} 11. Qb3 {[%emt 0:01:00]} Bb7 {[%emt 0:00:06]} 12. O-O {[%emt 0:00:54]} Nbd7 {[%emt 0:00:12]} 13. Rfd1 {[%emt 0:04:11]} c5 {[%emt 0:10:03]} 14. Ne5 {[%emt 0:07:18]} Bxg2 {[%emt 0:01:50]} 15. Kxg2 {[%emt 0:00:06]} c4 {[%emt 0:08:21]} 16. Qc2 {[%emt 0:00:53]} Rc8 {[%emt 0:01:08]} 17. Rd2 {[%emt 0:10:28]} b4 {[%emt 0:11:31]} 18. Na4 {[%emt 0:02:59]} h6 {[%emt 0:05:45]} 19. Bxf6 {[%emt 0:08:35]} Nxf6 {[%emt 0:00:27]} 20. e4 {[%emt 0:00:40]} Qc7 {[%emt 0:14:35]} 21. Rc1 {[%emt 0:05:17]} Qb7 {[%emt 0:07:10]} 22. f3 {[%emt 0:01:50]} Qb5 {[%emt 0:08:54]} 23. Nxc4 {[%emt 0:10:02]} Rxc4 {[%emt 0:02:29]} 24. Qxc4 {[%emt 0:00:02]} Qxa4 {[%emt 0:00:05]} 25. b3 {[%emt 0:03:55]} Qa3 {[%emt 0:00:10]} 26. Rcc2 {[%emt 0:01:14]} g5 {[%emt 0:07:37]} 27. Qc7 {[%emt 0:12:25]} Re8 {[%emt 0:00:20]} 28. Qc6 {[%emt 0:01:43]} Rd8 {[%emt 0:00:20]} 29. d5 {[%emt 0:01:42]} g4 {[%emt 0:06:18]} 30. d6 {[%emt 0:05:09]} gxf3+ {[%emt 0:00:09]} 31. Kxf3 {[%emt 0:00:10]} Bf8 {[%emt 0:00:55]} 32. Qc7 {[%emt 0:02:14]} Rd7 {[%emt 0:00:59]} 33. Qb6 {[%emt 0:04:42]} a5 {[%emt 0:04:11]} 34. Rc8 {[%emt 0:02:02]} a4 {[%emt 0:01:21]} 35. Qe3 {[%emt 0:02:02]} axb3 {[%emt 0:00:53]} 36. axb3 {[%emt 0:00:37]} Qa1 {[%emt 0:02:20]} 37. Kg2 {[%emt 0:03:03]} Qe5 {[%emt 0:00:20]} 38. Rd4 {[%emt 0:01:12]} Rxd6 {[%emt 0:04:23]} 39. Qxh6 {[%emt 0:00:42]} Nh7 {[%emt 0:01:07]} 40. Rdc4 {[%emt 0:00:00]} Qb2+ {[%emt 0:00:00]} 41. Rc2 {[%emt 0:03:11]} Qxc2+ {[%emt 0:03:58]} 0-1

[Event "5th EKA IIFL Investment 2019"]
[Site "Mumbai"]
[Date "2019.12.30"]
[Round "1.29"]
[White "Khusenkhojaev, Muhammad"]
[Black "Pandey Srishti"]
[Result "1/2-1/2"]
[ECO "E63"]
[WhiteElo "2427"]
[BlackElo "2162"]
[Annotator "ChessBase"]
[PlyCount "52"]
[EventDate "2019.12.30"]
[EventType "swiss"]
[EventCountry "IND"]
[SourceTitle "playchess.com"]
[Source "ChessBase"]
[SourceQuality "1"]
[TimeControl "40/5400+30:1800+30"]

1. Nf3 {[%emt 0:00:00]} Nf6 {[%emt 0:04:53]} 2. c4 {[%emt 0:00:00]} g6 {[%emt 0:00:29]} 3. d4 {[%emt 0:00:02]} Bg7 {[%emt 0:00:04]} 4. g3 {[%emt 0:00:07]} O-O {[%emt 0:00:06]} 5. Bg2 {[%emt 0:00:03]} d6 {[%emt 0:00:06]} 6. O-O {[%emt 0:00:10]} Nc6 {[%emt 0:00:02]} 7. Nc3 {[%emt 0:00:11]} a6 {[%emt 0:00:05]} 8. b3 {[%emt 0:01:09]} Rb8 {[%emt 0:00:22]} 9. d5 {[%emt 0:00:38]} Na5 {[%emt 0:00:44]} 10. Bd2 {[%emt 0:01:34]} c5 {[%emt 0:02:21]} 11. a4 {[%emt 0:01:22]} e6 {[%emt 0:03:03]} 12. Qc2 {[%emt 0:11:09]} exd5 {[%emt 0:02:52]} 13. cxd5 {[%emt 0:00:05]} b5 {[%emt 0:10:39]} 14. axb5 {[%emt 0:00:14]} axb5 {[%emt 0:00:03]} 15. e4 {[%emt 0:00:32]} b4 {[%emt 0:02:18]} 16. Na4 {[%emt 0:02:17]} Nxe4 {[%emt 0:12:47]} 17. Qxe4 {[%emt 0:00:38]} Bxa1 {[%emt 0:01:10]} 18. Rxa1 {[%emt 0:00:09]} Nxb3 {[%emt 0:00:09]} 19. Rd1 {[%emt 0:02:28]} Bf5 {[%emt 0:08:30]} 20. Qc4 {[%emt 0:00:50]} Na5 {[%emt 0:01:09]} 21. Qa2 {[%emt 0:04:23]} Ra8 {[%emt 0:17:03]} 22. Nb2 Rb8 23. Na4 {[%emt 0:01:00]} Ra8 {[%emt 0:00:35]} 24. Nb2 {[%emt 0:00:04]} Rb8 {[%emt 0:00:02]} 25. Na4 {[%emt 0:00:05]} Ra8 {[%emt 0:00:03]} 26. Nb2 {[%emt 0:00:08]} Rb8 {[%emt 0:00:04]} 1/2-1/2

[Event "5th EKA IIFL Investment 2019"]
[Site "Mumbai"]
[Date "2019.12.30"]
[Round "1.30"]
[White "Pranav, Shetty"]
[Black "Hesham, Abdelrahman"]
[Result "0-1"]
[ECO "B92"]
[WhiteElo "2162"]
[BlackElo "2416"]
[Annotator "ChessBase"]
[PlyCount "58"]
[EventDate "2019.12.30"]
[EventType "swiss"]
[EventCountry "IND"]
[SourceTitle "playchess.com"]
[Source "ChessBase"]
[SourceQuality "1"]
[TimeControl "40/5400+30:1800+30"]

1. e4 {[%emt 0:00:00]} c5 {[%emt 0:00:00]} 2. Nf3 {[%emt 0:00:07]} d6 {[%emt 0:00:00]} 3. d4 {[%emt 0:00:07]} cxd4 {[%emt 0:00:00]} 4. Nxd4 {[%emt 0:00:05]} Nf6 {[%emt 0:00:00]} 5. Nc3 {[%emt 0:00:04]} a6 {[%emt 0:00:01]} 6. Be2 {[%emt 0:00:30]} e5 {[%emt 0:00:57]} 7. Nf3 {[%emt 0:00:12]} h6 {[%emt 0:00:13]} 8. Nd2 {[%emt 0:00:24]} Be6 {[%emt 0:07:10]} 9. Nc4 {[%emt 0:01:52]} Qc7 {[%emt 0:16:48]} 10. Ne3 {[%emt 0:02:54]} Nbd7 {[%emt 0:01:15]} 11. a4 {[%emt 0:12:09]} Rc8 {[%emt 0:02:03]} 12. O-O {[%emt 0:01:00]} g6 {[%emt 0:01:20]} 13. g3 {[%emt 0:20:35]} Qa5 {[%emt 0:28:41]} 14. Bf3 {[%emt 0:32:40]} h5 {[%emt 0:04:06]} 15. Bg2 {[%emt 0:14:45]} h4 {[%emt 0:01:19]} 16. f4 {[%emt 0:00:32]} hxg3 {[%emt 0:00:55]} 17. hxg3 {[%emt 0:00:02]} Qc5 {[%emt 0:07:22]} 18. Rf2 {[%emt 0:01:12]} Nb6 {[%emt 0:13:55]} 19. fxe5 {[%emt 0:08:33]} Qxe5 {[%emt 0:07:33]} 20. Ned5 {[%emt 0:00:10]} Ng4 {[%emt 0:00:55]} 21. Bf4 {[%emt 0:01:12]} Qh5 {[%emt 0:02:40]} 22. Kf1 {[%emt 0:01:17]} Nd7 {[%emt 0:01:35]} 23. Rd2 {[%emt 0:00:28]} g5 {[%emt 0:01:23]} 24. Be3 {[%emt 0:00:33]} Rxc3 {[%emt 0:00:13]} 25. bxc3 {[%emt 0:00:22]} Bxd5 {[%emt 0:00:06]} 26. Bg1 {[%emt 0:00:36]} Bc4+ {[%emt 0:01:00]} 27. Ke1 {[%emt 0:00:01]} Bg7 {[%emt 0:00:42]} 28. Ra3 {[%emt 0:00:43]} Be5 {[%emt 0:00:10]} 29. Qf3 {[%emt 0:00:13]} Rh6 {[%emt 0:00:20]} 0-1

[Event "5th EKA IIFL Investment 2019"]
[Site "Mumbai"]
[Date "2019.12.30"]
[Round "1.31"]
[White "Sundararajan, Kidambi"]
[Black "Zia, Tahsin Tajwar"]
[Result "1/2-1/2"]
[ECO "A13"]
[WhiteElo "2414"]
[BlackElo "2148"]
[Annotator "ChessBase"]
[PlyCount "84"]
[EventDate "2019.12.30"]
[EventType "swiss"]
[EventCountry "IND"]
[SourceTitle "playchess.com"]
[Source "ChessBase"]
[SourceQuality "1"]
[TimeControl "40/5400+30:1800+30"]

1. c4 {[%emt 0:00:00]} e6 {[%emt 0:00:00]} 2. Nf3 {[%emt 0:00:08]} d5 {[%emt 0:00:00]} 3. e3 {[%emt 0:00:22]} Nf6 {[%emt 0:00:17]} 4. Nc3 {[%emt 0:00:39]} b6 {[%emt 0:07:29]} 5. d4 {[%emt 0:00:46]} Bb7 {[%emt 0:00:10]} 6. cxd5 {[%emt 0:00:16]} exd5 {[%emt 0:01:20]} 7. Bb5+ {[%emt 0:00:29]} c6 {[%emt 0:01:08]} 8. Bd3 {[%emt 0:00:11]} Bb4 {[%emt 0:02:49]} 9. O-O {[%emt 0:00:24]} O-O {[%emt 0:00:23]} 10. Bd2 {[%emt 0:01:48]} Nbd7 {[%emt 0:03:16]} 11. Ne2 {[%emt 0:01:22]} Bd6 {[%emt 0:07:20]} 12. Ng3 {[%emt 0:00:19]} Bxg3 {[%emt 0:01:05]} 13. hxg3 {[%emt 0:06:13]} Ne4 {[%emt 0:02:13]} 14. Bb4 {[%emt 0:03:33]} Re8 {[%emt 0:02:19]} 15. Nh4 {[%emt 0:03:15]} Qg5 {[%emt 0:10:55]} 16. Qf3 {[%emt 0:06:01]} a5 {[%emt 0:04:38]} 17. Bc3 {[%emt 0:01:12]} Ba6 {[%emt 0:05:37]} 18. Bxa6 {[%emt 0:00:43]} Rxa6 {[%emt 0:00:01]} 19. Rac1 {[%emt 0:04:19]} Raa8 {[%emt 0:02:38]} 20. Qf4 {[%emt 0:02:43]} Qxf4 {[%emt 0:11:09]} 21. gxf4 {[%emt 0:00:18]} Nd6 {[%emt 0:01:04]} 22. Nf3 {[%emt 0:01:45]} f6 {[%emt 0:01:06]} 23. Rc2 {[%emt 0:00:35]} Kf7 {[%emt 0:07:14]} 24. g3 {[%emt 0:01:44]} h6 {[%emt 0:02:08]} 25. Kg2 {[%emt 0:00:39]} g5 {[%emt 0:01:34]} 26. Rh1 {[%emt 0:01:25]} g4 {[%emt 0:03:07]} 27. Ne1 {[%emt 0:02:35]} Nf5 {[%emt 0:00:51]} 28. Rc1 {[%emt 0:04:41]} c5 {[%emt 0:03:11]} 29. dxc5 {[%emt 0:01:04]} bxc5 {[%emt 0:00:01]} 30. Nc2 {[%emt 0:01:22]} Nb6 {[%emt 0:01:46]} 31. Rhd1 {[%emt 0:07:14]} h5 {[%emt 0:00:38]} 32. Na3 {[%emt 0:01:15]} h4 {[%emt 0:04:54]} 33. gxh4 {[%emt 0:00:47]} g3 {[%emt 0:00:04]} 34. Bd2 {[%emt 0:06:48]} Nxh4+ {[%emt 0:02:02]} 35. Kf1 {[%emt 0:00:18]} g2+ {[%emt 0:04:13]} 36. Ke2 {[%emt 0:00:09]} Rg8 {[%emt 0:02:02]} 37. Rg1 {[%emt 0:00:48]} d4 {[%emt 0:01:19]} 38. f3 {[%emt 0:03:23]} Nd7 {[%emt 0:04:45]} 39. e4 {[%emt 0:04:12]} Rg7 {[%emt 0:02:01]} 40. Nc4 {[%emt 0:00:00]} Rag8 {[%emt 0:00:00]} 41. Be1 {[%emt 0:11:54]} Ng6 {[%emt 0:03:21]} 42. Bd2 {[%emt 0:00:15]} Nh4 {[%emt 0:00:48]} 1/2-1/2

[Event "5th EKA IIFL Investment 2019"]
[Site "Mumbai"]
[Date "2019.12.30"]
[Round "1.32"]
[White "Soham Datar"]
[Black "Zysk, Robert"]
[Result "0-1"]
[ECO "E46"]
[WhiteElo "2145"]
[BlackElo "2403"]
[Annotator "ChessBase"]
[PlyCount "58"]
[EventDate "2019.12.30"]
[EventType "swiss"]
[EventCountry "IND"]
[SourceTitle "playchess.com"]
[Source "ChessBase"]
[SourceQuality "1"]
[TimeControl "40/5400+30:1800+30"]

1. d4 Nf6 2. c4 e6 3. Nc3 Bb4 4. e3 O-O 5. Bd2 d5 6. a3 Be7 7. cxd5 exd5 8. Bd3 c5 9. Nge2 Nc6 10. O-O a6 11. Qc2 c4 12. Bf5 Bd6 13. f3 Re8 14. Rad1 Bc7 15. Ng3 g6 16. Bxc8 Rxc8 17. Bc1 b5 18. Qf2 Qd7 19. Kh1 h5 20. Nge2 b4 21. Na4 Nxd4 22. Nxd4 Qxa4 23. axb4 Qxb4 24. g4 Be5 25. gxh5 Nxh5 26. Rg1 Bg7 27. Ne2 Red8 28. Qg2 Qd6 29. Nd4 Rc6 0-1

[Event "5th EKA IIFL Investment 2019"]
[Site "Mumbai"]
[Date "2019.12.30"]
[Round "1.33"]
[White "Moksh Amit Doshi"]
[Black "Priyanka, Kumari"]
[Result "1-0"]
[ECO "E71"]
[WhiteElo "2399"]
[BlackElo "1874"]
[Annotator "ChessBase"]
[PlyCount "61"]
[EventDate "2019.12.30"]
[EventType "swiss"]
[EventCountry "IND"]
[SourceTitle "playchess.com"]
[Source "ChessBase"]
[SourceQuality "1"]
[TimeControl "40/5400+30:1800+30"]

1. d4 {[%emt 0:00:29]} Nf6 {[%emt 0:00:00]} 2. c4 {[%emt 0:00:07]} g6 {[%emt 0:00:02]} 3. Nc3 {[%emt 0:00:05]} Bg7 {[%emt 0:00:06]} 4. e4 {[%emt 0:00:07]} d6 {[%emt 0:00:06]} 5. h3 {[%emt 0:00:06]} O-O {[%emt 0:00:33]} 6. Be3 {[%emt 0:00:05]} e5 {[%emt 0:01:59]} 7. d5 {[%emt 0:00:08]} Na6 {[%emt 0:00:58]} 8. g4 {[%emt 0:01:16]} Nc5 {[%emt 0:00:38]} 9. f3 {[%emt 0:01:24]} c6 {[%emt 0:01:46]} 10. Nge2 {[%emt 0:02:23]} cxd5 {[%emt 0:03:23]} 11. cxd5 {[%emt 0:00:07]} Bd7 {[%emt 0:03:54]} 12. Qd2 {[%emt 0:03:14]} a5 {[%emt 0:14:28]} 13. Ng3 {[%emt 0:01:10]} h5 {[%emt 0:09:24]} 14. gxh5 {[%emt 0:11:18]} Nxh5 {[%emt 0:01:00]} 15. Nxh5 {[%emt 0:02:30]} Qh4+ {[%emt 0:01:23]} 16. Qf2 {[%emt 0:00:37]} Qxf2+ {[%emt 0:09:02]} 17. Kxf2 {[%emt 0:00:07]} gxh5 {[%emt 0:00:05]} 18. Rg1 {[%emt 0:00:07]} f5 {[%emt 0:08:00]} 19. Bxc5 {[%emt 0:01:40]} dxc5 {[%emt 0:00:07]} 20. Rg5 {[%emt 0:03:33]} b5 {[%emt 0:17:26]} 21. Bxb5 {[%emt 0:01:32]} Bxb5 {[%emt 0:00:22]} 22. Rag1 {[%emt 0:00:41]} Rf7 {[%emt 0:06:17]} 23. Nxb5 {[%emt 0:00:08]} fxe4 {[%emt 0:12:31]} 24. Nd6 {[%emt 0:00:05]} Rxf3+ {[%emt 0:01:17]} 25. Ke2 {[%emt 0:00:07]} Ra7 {[%emt 0:00:18]} 26. Ne8 {[%emt 0:01:27]} Rxh3 {[%emt 0:05:40]} 27. Nxg7 {[%emt 0:00:09]} Rh2+ {[%emt 0:00:42]} 28. Ke3 {[%emt 0:00:07]} Rxb2 {[%emt 0:01:44]} 29. Ne6+ {[%emt 0:00:06]} Kh8 {[%emt 0:00:04]} 30. Rg8+ {[%emt 0:00:06]} Kh7 {[%emt 0:00:05]} 31. Nf8+ {[%emt 0:00:05]} 1-0